fUST/lending_fUST_20250707
["ID","MTS","AMOUNT","RATE_DAILY","PERIOD"]
[370075392,1751874712102,-444.71591732,0.00019822,2]
[370075393,1751874712111,-547.93668276,0.00019822,2]
[370075394,1751874712122,-460.0,0.00019822,2]
[370075395,1751874712133,-460.0,0.00019822,2]
[370075396,1751874712144,-460.0,0.00019822,2]
[370075397,1751874712154,-460.0,0.00019822,2]
[370075398,1751874712164,-460.0,0.00019822,2]
[370075399,1751874712176,-460.0,0.00019822,2]
[370075400,1751874712187,-460.0,0.00019822,2]
[370075401,1751874712197,-460.0,0.00019822,2]
[370075402,1751874712207,-460.0,0.00019822,2]
[370075403,1751874712219,-460.0,0.00019822,2]
[370075404,1751874712230,-460.0,0.00019822,2]
[370075405,1751874712241,-460.0,0.00019822,2]
[370075406,1751874712251,-500.0,0.00019822,2]
[370075407,1751874712260,-1217.52,0.00019822,2]
[370075408,1751874712270,-460.0,0.00019822,2]
[370075409,1751874712280,-598.99,0.00019822,2]
[370075410,1751874712290,-460.0,0.00019822,2]
[370075411,1751874712300,-460.0,0.00019822,2]
[370075412,1751874712310,-460.0,0.00019822,2]
[370075413,1751874712319,-460.0,0.00019822,2]
[370075414,1751874712328,-460.0,0.00019822,2]
[370075415,1751874712337,-460.0,0.00019822,2]
[370075416,1751874712346,-460.0,0.00019822,2]
[370075417,1751874712357,-460.44,0.00019822,2]
[370075418,1751874712367,-460.0,0.00019822,2]
[370075419,1751874712378,-460.0,0.00019822,2]
[370075420,1751874712389,-460.0,0.00019822,2]
[370075421,1751874712399,-460.0,0.00019822,2]
[370075422,1751874712409,-460.0,0.00019822,2]
[370075423,1751874712419,-460.0,0.00019822,2]
[370075424,1751874712428,-460.0,0.00019822,2]
[370075425,1751874712438,-460.0,0.00019822,2]
[370075426,1751874712448,-568.83,0.00019822,2]
[370075427,1751874712459,-460.0,0.00019822,2]
[370075428,1751874712472,-460.0,0.00019822,2]
[370075429,1751874712481,-460.0,0.00019822,2]
[370075430,1751874712490,-460.0,0.00019822,2]
[370075431,1751874712500,-1142.62,0.00019822,2]
[370075432,1751874712509,-3875.46,0.00019822,2]
[370075433,1751874712519,-460.0,0.00019822,2]
[370075434,1751874712529,-460.0,0.00019822,2]
[370075435,1751874712539,-460.0,0.00019822,2]
[370075436,1751874712549,-484.93,0.00019822,2]
[370075437,1751874712559,-460.0,0.00019822,2]
[370075438,1751874712568,-460.0,0.00019822,2]
[370075439,1751874712577,-661.69,0.00019822,2]
[370075440,1751874712587,-460.0,0.00019822,2]
[370075441,1751874712597,-460.0,0.00019822,2]
[370075442,1751874712606,-460.0,0.00019822,2]
[370075443,1751874712616,-460.0,0.00019822,2]
[370075444,1751874712625,-460.0,0.00019822,2]
[370075445,1751874712635,-460.0,0.00019822,2]
[370075446,1751874712645,-460.0,0.00019822,2]
[370075447,1751874712655,-460.0,0.00019822,2]
[370075448,1751874712666,-3246.94,0.00019822,2]
[370075449,1751874712677,-503.41,0.00019822,2]
[370075450,1751874712687,-499.04,0.00019822,2]
[370075451,1751874712696,-460.0,0.00019822,2]
[370075452,1751874712707,-460.0,0.00019822,2]
[370075453,1751874712717,-460.0,0.00019822,2]
[370075454,1751874712726,-2096.65,0.00019822,2]
[370075455,1751874712736,-460.0,0.00019822,2]
[370075456,1751874712746,-503.05,0.00019822,2]
[370075457,1751874712756,-460.0,0.00019822,2]
[370075458,1751874712766,-2875.21,0.00019822,2]
[370075459,1751874712775,-220.871132,0.00019823,2]
[370075460,1751874712785,-220.871128,0.00019823,2]
[370075461,1751874712794,-151.0,0.00019823,2]
[370075462,1751874712804,-200.0,0.00019824,2]
[370075463,1751874712815,-460.0,0.00019824,2]
[370075464,1751874712824,-460.0,0.00019824,2]
[370075465,1751874712834,-460.0,0.00019824,2]
[370075466,1751874712844,-1143.07,0.00019824,2]
[370075467,1751874712854,-460.0,0.00019824,2]
[370075468,1751874712864,-460.0,0.00019824,2]
[370075469,1751874712876,-460.0,0.00019824,2]
[370075470,1751874712886,-460.0,0.00019824,2]
[370075471,1751874712896,-460.0,0.00019824,2]
[370075472,1751874712906,-460.0,0.00019824,2]
[370075473,1751874712916,-460.0,0.00019824,2]
[370075474,1751874712928,-460.0,0.00019824,2]
[370075475,1751874712938,-460.0,0.00019824,2]
[370075476,1751874712948,-460.0,0.00019824,2]
[370075477,1751874712958,-460.0,0.00019824,2]
[370075478,1751874712968,-904.25,0.00019824,2]
[370075479,1751874712979,-460.0,0.00019824,2]
[370075480,1751874712988,-460.0,0.00019824,2]
[370075481,1751874712997,-460.0,0.00019824,2]
[370075482,1751874713007,-460.0,0.00019824,2]
[370075483,1751874713018,-460.0,0.00019824,2]
[370075484,1751874713029,-460.0,0.00019824,2]
[370075485,1751874713039,-460.0,0.00019824,2]
[370075486,1751874713048,-460.0,0.00019824,2]
[370075487,1751874713057,-460.0,0.00019824,2]
[370075488,1751874713067,-460.0,0.00019825,2]
[370075489,1751874713077,-460.0,0.00019825,2]
[370075490,1751874713087,-460.0,0.00019825,2]
[370075491,1751874713097,-471.71,0.00019825,2]
[370075492,1751874713107,-460.0,0.00019825,2]
[370075493,1751874713118,-460.0,0.00019825,2]
[370075494,1751874713128,-460.0,0.00019825,2]
[370075495,1751874713138,-409.16279511,0.00019825,2]
[370075496,1751874713148,-460.0,0.00019825,2]
[370075497,1751874713158,-460.0,0.00019825,2]
[370075498,1751874713170,-151.0,0.00019825,2]
[370075499,1751874713180,-275.356749,0.00019825,2]
[370075500,1751874713190,-275.356749,0.00019825,2]
[370075501,1751874713199,-160.4115,0.00019825,2]
[370075502,1751874713213,-160.4115,0.00019825,2]
[370075503,1751874713222,-262.761526,0.00019825,2]
[370075504,1751874713232,-262.761523,0.00019825,2]
[370075505,1751874713241,-151.0,0.00019827,2]
[370075506,1751874713251,-151.0,0.00019827,2]
[370075507,1751874713260,-151.0,0.00019828,2]
[370075508,1751874713269,-260.204433,0.00019828,2]
[370075509,1751874713279,-189.261253,0.00019828,2]
[370075510,1751874713291,-189.261253,0.00019828,2]
[370075511,1751874713301,-453.528498,0.00019828,2]
[370075512,1751874713311,-1952.44731812,0.00019831,2]
[370075513,1751874713320,-500.0,0.00019886,2]
[370075514,1751874713330,-3000.0,0.000199,2]
[370075515,1751874713340,-3000.0,0.0001991,2]
[370075516,1751874713349,-3000.0,0.0001992,2]
[370075517,1751874713359,-3000.0,0.0001993,2]
[370075518,1751874713368,-3000.0,0.0001994,2]
[370075519,1751874713378,-3000.0,0.0001995,2]
[370075520,1751874713387,-3000.0,0.0001996,2]
[370075521,1751874713398,-4220.1822831,0.0001996,2]
[370075522,1751874713408,-3000.0,0.0001997,2]
[370075523,1751874713418,-3000.0,0.0001998,2]
[370075524,1751874713428,-3000.0,0.0001999,2]
[370075525,1751874713438,-999.999999,0.0001999,2]
[370075526,1751874713447,-200.0,0.00019999,2]
[370075527,1751874713456,-3000.0,0.0002,2]
[370075528,1751874713468,-11210.65628434,0.0002,2]
[370075529,1751874713478,-14317.36403962,0.0002,2]
[370075530,1751874713487,-10802.84927228,0.0002,2]
[370075531,1751874713497,-1188.78236198,0.0002,2]
[370075532,1751874713507,-361.99469515,0.0002,2]
[370075533,1751874713517,-40000.0,0.0002,2]
[370075534,1751874713526,-3479.21407192,0.0002,2]
[370075535,1751874713536,-44498.47336816,0.0002,2]
[370075536,1751874713546,-300.0,0.0002,2]
[370075537,1751874713556,-160.0,0.0002,4]
[370075538,1751874713566,-4000.0,0.0002,4]
[370075539,1751874713576,-3888.663763,0.0002001,2]
[370075540,1751874713585,-500.0,0.00020029,2]
[370075541,1751874713595,-587.0,0.00020053,2]
[370075542,1751874713605,-460.0,0.00020091,2]
[370075543,1751874713615,-460.0,0.00020091,2]
[370075544,1751874713625,-516.51,0.00020091,2]
[370075545,1751874713635,-502.13,0.00020091,2]
[370075546,1751874713645,-460.0,0.00020091,2]
[370075547,1751874713655,-5847.9,0.00020091,2]
[370075548,1751874713664,-460.0,0.00020091,2]
[370075549,1751874713674,-460.0,0.00020091,2]
[370075550,1751874713684,-460.0,0.00020092,2]
[370075551,1751874713694,-460.0,0.00020092,2]
[370075552,1751874713704,-460.0,0.00020092,2]
[370075553,1751874713714,-462.21,0.00020092,2]
[370075554,1751874713724,-460.0,0.00020092,2]
[370075555,1751874713734,-3915.6,0.00020092,2]
[370075556,1751874713951,-598.2,0.00020092,2]
[370075557,1751874713961,-2220.21,0.00020092,2]
[370075558,1751874713971,-460.0,0.00020092,2]
[370075559,1751874713981,-596.4,0.00020092,2]
[370075560,1751874713991,-791.73,0.00020092,2]
[370075561,1751874714001,-460.0,0.00020092,2]
[370075562,1751874714011,-460.0,0.00020092,2]
[370075563,1751874714021,-500.96,0.00020092,2]
[370075564,1751874714031,-460.0,0.00020092,2]
[370075565,1751874714041,-908.31,0.00020092,2]
[370075566,1751874714051,-3498.14,0.00020092,2]
[370075567,1751874714062,-460.0,0.00020092,2]
[370075568,1751874714071,-7001.38,0.00020092,2]
[370075569,1751874714081,-460.0,0.00020092,2]
[370075570,1751874714090,-802.05,0.00020092,2]
[370075571,1751874714100,-460.0,0.00020092,2]
[370075572,1751874714110,-2963.68,0.00020092,2]
[370075573,1751874714119,-960.04,0.00020092,2]
[370075574,1751874714129,-515.59,0.00020092,2]
[370075575,1751874714139,-1138.73,0.00020092,2]
[370075576,1751874714148,-460.0,0.00020092,2]
[370075577,1751874714158,-460.0,0.00020092,2]
[370075578,1751874714167,-460.0,0.00020093,2]
[370075579,1751874714177,-460.0,0.00020093,2]
[370075580,1751874714186,-460.0,0.00020093,2]
[370075581,1751874714196,-460.0,0.00020093,2]
[370075582,1751874714206,-460.0,0.00020093,2]
[370075583,1751874714218,-460.0,0.00020093,2]
[370075584,1751874714229,-460.0,0.00020093,2]
[370075585,1751874714238,-460.0,0.00020093,2]
[370075586,1751874714248,-460.0,0.00020093,2]
[370075587,1751874714258,-460.0,0.00020093,2]
[370075588,1751874714267,-460.0,0.00020093,2]
[370075589,1751874714277,-460.0,0.00020093,2]
[370075590,1751874714287,-460.0,0.00020093,2]
[370075591,1751874714296,-460.0,0.00020093,2]
[370075592,1751874714306,-460.0,0.00020093,2]
[370075593,1751874714317,-460.0,0.00020093,2]
[370075594,1751874714327,-460.0,0.00020093,2]
[370075595,1751874714336,-460.0,0.00020093,2]
[370075596,1751874714346,-460.0,0.00020093,2]
[370075597,1751874714356,-460.0,0.00020093,2]
[370075598,1751874714366,-460.0,0.00020093,2]
[370075599,1751874714376,-460.0,0.00020093,2]
[370075600,1751874714386,-460.0,0.00020093,2]
[370075601,1751874714396,-460.0,0.00020093,2]
[370075602,1751874714405,-460.0,0.00020093,2]
[370075603,1751874714415,-460.0,0.00020093,2]
[370075604,1751874714425,-460.0,0.00020093,2]
[370075605,1751874714435,-460.0,0.00020093,2]
[370075606,1751874714445,-800.94,0.00020093,2]
[370075607,1751874714455,-460.0,0.00020093,2]
[370075608,1751874714464,-1010.27,0.00020093,2]
[370075609,1751874714474,-460.0,0.00020094,2]
[370075610,1751874714483,-460.0,0.00020094,2]
[370075611,1751874714493,-545.09,0.00020094,2]
[370075612,1751874714502,-460.0,0.00020094,2]
[370075613,1751874714513,-460.0,0.00020094,2]
[370075614,1751874714523,-460.0,0.00020094,2]
[370075615,1751874714533,-460.0,0.00020094,2]
[370075616,1751874714543,-460.0,0.00020094,2]
[370075617,1751874714552,-595.03,0.00020094,2]
[370075618,1751874714562,-460.0,0.00020094,2]
[370075619,1751874714573,-460.0,0.00020094,2]
[370075620,1751874714583,-460.0,0.00020094,2]
[370075621,1751874714593,-460.0,0.00020094,2]
[370075622,1751874714604,-853.89,0.00020094,2]
[370075623,1751874714614,-460.0,0.00020094,2]
[370075624,1751874714623,-653.05,0.00020094,2]
[370075625,1751874714633,-1467.27,0.00020094,2]
[370075626,1751874714644,-460.0,0.00020094,2]
[370075627,1751874714654,-460.0,0.00020094,2]
[370075628,1751874714664,-460.0,0.00020094,2]
[370075629,1751874714674,-460.0,0.00020094,2]
[370075630,1751874714684,-460.0,0.00020094,2]
[370075631,1751874714694,-460.0,0.00020094,2]
[370075632,1751874714704,-558.67,0.00020094,2]
[370075633,1751874714715,-1277.64,0.00020094,2]
[370075634,1751874714726,-875.52,0.00020094,2]
[370075635,1751874714736,-460.0,0.00020094,2]
[370075636,1751874714746,-1859.47,0.00020094,2]
[370075637,1751874714756,-460.0,0.00020094,2]
[370075638,1751874714766,-460.0,0.00020094,2]
[370075639,1751874714776,-667.38,0.00020094,2]
[370075640,1751874714786,-460.0,0.00020094,2]
[370075641,1751874714796,-462.72,0.00020094,2]
[370075642,1751874714806,-460.0,0.00020094,2]
[370075643,1751874714816,-460.0,0.00020095,2]
[370075644,1751874714826,-476.25,0.00020095,2]
[370075645,1751874714836,-460.0,0.00020095,2]
[370075646,1751874714846,-460.0,0.00020095,2]
[370075647,1751874714855,-460.0,0.00020095,2]
[370075648,1751874714865,-514.3,0.00020095,2]
[370075649,1751874714875,-460.0,0.00020095,2]
[370075650,1751874714884,-487.81,0.00020095,2]
[370075651,1751874714894,-1189.7,0.00020095,2]
[370075652,1751874714904,-460.0,0.00020095,2]
[370075653,1751874714913,-1405.47,0.00020095,2]
[370075654,1751874714923,-470.64,0.00020095,2]
[370075655,1751874714933,-460.0,0.00020095,2]
[370075656,1751874714943,-1319.88,0.00020095,2]
[370075657,1751874714952,-760.73,0.00020095,2]
[370075658,1751874714961,-1793.32,0.00020095,2]
[370075659,1751874714971,-460.0,0.00020095,2]
[370075660,1751874714981,-460.0,0.00020095,2]
[370075661,1751874714990,-460.0,0.00020095,2]
[370075662,1751874715012,-801.02,0.00020095,2]
[370075663,1751874715022,-484.77,0.00020095,2]
[370075664,1751874715033,-460.0,0.00020095,2]
[370075665,1751874715043,-485.52,0.00020095,2]
[370075666,1751874715054,-9292.4,0.00020095,2]
[370075667,1751874715064,-752.99,0.00020095,2]
[370075668,1751874715076,-2399.68,0.00020095,2]
[370075669,1751874715086,-460.0,0.00020095,2]
[370075670,1751874715097,-1940.76,0.00020095,2]
[370075671,1751874715107,-460.0,0.00020095,2]
[370075672,1751874715118,-460.0,0.00020095,2]
[370075673,1751874715128,-1002.05,0.00020095,2]
[370075674,1751874715139,-1775.53,0.00020095,2]
[370075675,1751874715148,-833.33,0.00020096,2]
[370075676,1751874715159,-460.0,0.00020096,2]
[370075677,1751874715169,-479.16,0.00020096,2]
[370075678,1751874715180,-460.0,0.00020096,2]
[370075679,1751874715190,-460.0,0.00020096,2]
[370075680,1751874715200,-460.0,0.00020096,2]
[370075681,1751874715212,-789.93,0.00020096,2]
[370075682,1751874715224,-460.0,0.00020096,2]
[370075683,1751874715234,-460.0,0.00020096,2]
[370075684,1751874715244,-460.0,0.00020096,2]
[370075685,1751874715255,-460.0,0.00020096,2]
[370075686,1751874715265,-460.0,0.00020096,2]
[370075687,1751874715275,-460.0,0.00020096,2]
[370075688,1751874715287,-460.0,0.00020096,2]
[370075689,1751874715297,-460.0,0.00020096,2]
[370075690,1751874715308,-1358.8,0.00020096,2]
[370075691,1751874715318,-460.0,0.00020096,2]
[370075692,1751874715328,-460.0,0.00020096,2]
[370075693,1751874715339,-460.0,0.00020096,2]
[370075694,1751874715349,-474.49,0.00020096,2]
[370075695,1751874715359,-1067.63,0.00020096,2]
[370075696,1751874715369,-484.4,0.00020096,2]
[370075697,1751874715379,-636.05,0.00020096,2]
[370075698,1751874715390,-460.0,0.00020096,2]
[370075699,1751874715400,-460.0,0.00020096,2]
[370075700,1751874715410,-460.0,0.00020096,2]
[370075701,1751874715421,-321.52,0.00020096,2]
[370075702,1751874715431,-460.0,0.00020096,2]
[370075703,1751874715441,-460.0,0.00020096,2]
[370075704,1751874715451,-460.0,0.00020096,2]
[370075705,1751874715461,-460.0,0.00020096,2]
[370075706,1751874715471,-460.0,0.00020096,2]
[370075707,1751874715481,-460.0,0.00020096,2]
[370075708,1751874715491,-460.0,0.00020096,2]
[370075709,1751874715501,-460.0,0.00020096,2]
[370075710,1751874715511,-460.0,0.00020096,2]
[370075711,1751874715522,-460.0,0.00020096,2]
[370075712,1751874715531,-460.0,0.00020096,2]
[370075713,1751874715541,-513.09971607,0.00020096,2]
[370075714,1751874715551,-460.0,0.00020096,2]
[370075715,1751874715562,-460.0,0.00020096,2]
[370075716,1751874715572,-539.41821942,0.00020096,2]
[370075717,1751874715582,-1217.52,0.00020096,2]
[370075718,1751874715592,-460.0,0.00020096,2]
[370075719,1751874715602,-598.99,0.00020096,2]
[370075720,1751874715612,-460.0,0.00020096,2]
[370075721,1751874715622,-468.97747197,0.00020096,2]
[370075722,1751874715632,-460.0,0.00020096,2]
[370075723,1751874715641,-460.0,0.00020096,2]
[370075724,1751874715651,-460.0,0.00020096,2]
[370075725,1751874715660,-460.0,0.00020096,2]
[370075726,1751874715670,-436.73973518,0.00020096,2]
[370075727,1751874715680,-460.44,0.00020096,2]
[370075728,1751874715690,-460.0,0.00020096,2]
[370075729,1751874715702,-460.0,0.00020096,2]
[370075730,1751874715711,-460.0,0.00020096,2]
[370075731,1751874715721,-460.0,0.00020096,2]
[370075732,1751874715731,-460.0,0.00020096,2]
[370075733,1751874715740,-460.0,0.00020096,2]
[370075734,1751874715751,-460.0,0.00020096,2]
[370075735,1751874715761,-460.0,0.00020096,2]
[370075736,1751874715771,-568.83,0.00020096,2]
[370075737,1751874715782,-460.0,0.00020096,2]
[370075738,1751874715792,-460.0,0.00020096,2]
[370075739,1751874715802,-460.0,0.00020096,2]
[370075740,1751874715812,-380.13,0.00020096,2]
[370075741,1751874715822,-1142.62,0.00020096,2]
[370075742,1751874715832,-3875.46,0.00020096,2]
[370075743,1751874715842,-460.0,0.00020096,2]
[370075744,1751874715852,-460.0,0.00020096,2]
[370075745,1751874715862,-484.93,0.00020096,2]
[370075746,1751874715871,-460.0,0.00020096,2]
[370075747,1751874715881,-460.0,0.00020096,2]
[370075748,1751874715890,-661.69,0.00020096,2]
[370075749,1751874715901,-460.0,0.00020096,2]
[370075750,1751874715910,-460.0,0.00020096,2]
[370075751,1751874715920,-353.91178374,0.00020096,2]
[370075752,1751874715929,-460.0,0.00020096,2]
[370075753,1751874715939,-460.0,0.00020096,2]
[370075754,1751874715950,-460.0,0.00020096,2]
[370075755,1751874715959,-460.0,0.00020096,2]
[370075756,1751874715970,-460.0,0.00020096,2]
[370075757,1751874715979,-3246.94,0.00020096,2]
[370075758,1751874715989,-503.41,0.00020096,2]
[370075759,1751874716000,-499.04,0.00020096,2]
[370075760,1751874716011,-460.0,0.00020096,2]
[370075761,1751874716020,-460.0,0.00020096,2]
[370075762,1751874716030,-460.0,0.00020096,2]
[370075763,1751874716039,-2096.65,0.00020096,2]
[370075764,1751874716049,-460.0,0.00020096,2]
[370075765,1751874716058,-503.05,0.00020096,2]
[370075766,1751874716068,-460.0,0.00020096,2]
[370075767,1751874716078,-460.0,0.00020098,2]
[370075768,1751874716088,-460.0,0.00020098,2]
[370075769,1751874716099,-1143.07,0.00020098,2]
[370075770,1751874716109,-460.0,0.00020098,2]
[370075771,1751874716120,-460.0,0.00020098,2]
[370075772,1751874716130,-460.0,0.00020098,2]
[370075773,1751874716140,-460.0,0.00020098,2]
[370075774,1751874716150,-460.0,0.00020098,2]
[370075775,1751874716161,-460.0,0.00020098,2]
[370075776,1751874716172,-460.0,0.00020098,2]
[370075777,1751874716182,-460.0,0.00020098,2]
[370075778,1751874716192,-460.0,0.00020098,2]
[370075779,1751874716203,-460.0,0.00020098,2]
[370075780,1751874716217,-904.25,0.00020098,2]
[370075781,1751874716228,-460.0,0.00020098,2]
[370075782,1751874716238,-460.0,0.00020098,2]
[370075783,1751874716247,-460.0,0.00020098,2]
[370075784,1751874716257,-460.0,0.00020098,2]
[370075785,1751874716267,-460.0,0.00020098,2]
[370075786,1751874716277,-460.0,0.00020098,2]
[370075787,1751874716287,-460.0,0.00020098,2]
[370075788,1751874716296,-537.32688979,0.00020098,2]
[370075789,1751874716305,-200.0,0.00020098,2]
[370075790,1751874716315,-460.0,0.00020099,2]
[370075791,1751874716324,-460.0,0.00020099,2]
[370075792,1751874716334,-460.0,0.00020099,2]
[370075793,1751874716344,-471.71,0.00020099,2]
[370075794,1751874716353,-460.0,0.00020099,2]
[370075795,1751874716363,-460.0,0.00020099,2]
[370075796,1751874716373,-460.0,0.00020099,2]
[370075797,1751874716382,-151.0,0.00020099,2]
[370075798,1751874716392,-189.261253,0.00020099,2]
[370075799,1751874716401,-460.0,0.00020099,2]
[370075800,1751874716411,-189.261253,0.00020099,2]
[370075801,1751874716420,-460.0,0.00020099,2]
[370075802,1751874716430,-151.0,0.00020099,2]
[370075803,1751874716439,-453.528498,0.00020099,2]
[370075804,1751874716448,-275.356749,0.00020099,2]
[370075805,1751874716458,-275.356742,0.00020099,2]
[370075806,1751874716581,-196.555937,0.000201,2]
[370075807,1751874716591,-196.555937,0.000201,2]
[370075808,1751874716600,-244.38574,0.000201,2]
[370075809,1751874716611,-244.38574,0.000201,2]
[370075810,1751874716620,-151.613201,0.00020102,2]
[370075811,1751874716630,-1952.44731812,0.00020107,2]
[370075812,1751874716640,-3000.0,0.00020112,2]
[370075813,1751874716650,-3000.0,0.00020164,2]
[370075814,1751874716660,-501.15663313,0.00020164,2]
[370075815,1751874716669,-500.0,0.00020164,2]
[370075816,1751874716678,-1000.0,0.00020164,2]
[370075817,1751874716688,-433.11298378,0.00020164,2]
[370075818,1751874716698,-435.91535832,0.00020216,2]
[370075819,1751874716707,-460.0,0.00020365,2]
[370075820,1751874716716,-460.0,0.00020365,2]
[370075821,1751874716726,-516.51,0.00020365,2]
[370075822,1751874716736,-502.13,0.00020365,2]
[370075823,1751874716745,-460.0,0.00020365,2]
[370075824,1751874716754,-5847.9,0.00020365,2]
[370075825,1751874716764,-460.0,0.00020365,2]
[370075826,1751874716773,-460.0,0.00020366,2]
[370075827,1751874716783,-530.53,0.00020366,2]
[370075828,1751874716792,-460.0,0.00020366,2]
[370075829,1751874716802,-462.21,0.00020366,2]
[370075830,1751874716812,-460.0,0.00020366,2]
[370075831,1751874716822,-3915.6,0.00020366,2]
[370075832,1751874716832,-598.2,0.00020366,2]
[370075833,1751874716842,-2220.21,0.00020366,2]
[370075834,1751874716852,-596.4,0.00020366,2]
[370075835,1751874716861,-791.73,0.00020366,2]
[370075836,1751874716870,-460.0,0.00020366,2]
[370075837,1751874716880,-460.0,0.00020366,2]
[370075838,1751874716889,-500.96,0.00020366,2]
[370075839,1751874716899,-460.0,0.00020366,2]
[370075840,1751874716908,-908.31,0.00020366,2]
[370075841,1751874716918,-3498.14,0.00020366,2]
[370075842,1751874716928,-460.0,0.00020366,2]
[370075843,1751874716938,-7001.38,0.00020366,2]
[370075844,1751874716947,-460.0,0.00020366,2]
[370075845,1751874716956,-802.05,0.00020366,2]
[370075846,1751874716966,-460.0,0.00020366,2]
[370075847,1751874716976,-2963.68,0.00020366,2]
[370075848,1751874716985,-960.04,0.00020366,2]
[370075849,1751874716995,-515.59,0.00020366,2]
[370075850,1751874717004,-1138.73,0.00020366,2]
[370075851,1751874717014,-460.0,0.00020366,2]
[370075852,1751874717024,-460.0,0.00020367,2]
[370075853,1751874717033,-460.0,0.00020367,2]
[370075854,1751874717042,-460.0,0.00020367,2]
[370075855,1751874717051,-460.0,0.00020367,2]
[370075856,1751874717060,-460.0,0.00020367,2]
[370075857,1751874717070,-283.2,0.00020367,2]
[370075858,1751874717080,-460.0,0.00020367,2]
[370075859,1751874717090,-460.0,0.00020367,2]
[370075860,1751874717100,-460.0,0.00020367,2]
[370075861,1751874717110,-460.0,0.00020367,2]
[370075862,1751874717119,-460.0,0.00020367,2]
[370075863,1751874717129,-460.0,0.00020367,2]
[370075864,1751874717139,-460.0,0.00020367,2]
[370075865,1751874717149,-460.0,0.00020367,2]
[370075866,1751874717159,-294.56910948,0.00020367,2]
[370075867,1751874717168,-562.50143048,0.00020367,2]
[370075868,1751874717178,-460.0,0.00020367,2]
[370075869,1751874717188,-460.0,0.00020367,2]
[370075870,1751874717198,-460.0,0.00020367,2]
[370075871,1751874717208,-460.0,0.00020367,2]
[370075872,1751874717222,-460.0,0.00020367,2]
[370075873,1751874717231,-460.0,0.00020367,2]
[370075874,1751874717241,-460.0,0.00020367,2]
[370075875,1751874717250,-460.0,0.00020367,2]
[370075876,1751874717261,-460.0,0.00020367,2]
[370075877,1751874717270,-460.0,0.00020367,2]
[370075878,1751874717279,-460.0,0.00020367,2]
[370075879,1751874717291,-800.94,0.00020367,2]
[370075880,1751874717302,-460.0,0.00020367,2]
[370075881,1751874717313,-1010.27,0.00020367,2]
[370075882,1751874717323,-460.0,0.00020368,2]
[370075883,1751874717334,-460.0,0.00020368,2]
[370075884,1751874717343,-545.09,0.00020368,2]
[370075885,1751874717355,-460.0,0.00020368,2]
[370075886,1751874717365,-460.0,0.00020368,2]
[370075887,1751874717375,-460.0,0.00020368,2]
[370075888,1751874717385,-460.0,0.00020368,2]
[370075889,1751874717394,-460.0,0.00020368,2]
[370075890,1751874717404,-595.03,0.00020368,2]
[370075891,1751874717414,-460.0,0.00020368,2]